[Event "Live Chess"]
[Site "Chess.com"]
[Date "2024.06.01"]
[Round "-"]
[White "Golden_Plans"]
[Black "Tatarinov_Maxim"]
[Result "1-0"]
[WhiteElo "2259"]
[BlackElo "2279"]
[TimeControl "300"]
[EndTime "10:47:12 PDT"]
[Termination "Golden_Plans won by resignation"]

1. e4 {[%clk 0:04:59]} 1... c5 {[%clk 0:04:58.6]} 2. Nf3 {[%clk 0:04:58.9]} 2...
Nc6 {[%clk 0:04:57.2]} 3. Nc3 {[%clk 0:04:52.6]} 3... d6 {[%clk 0:04:55.5]} 4.
d4 {[%clk 0:04:51.7]} 4... cxd4 {[%clk 0:04:53.6]} 5. Nxd4 {[%clk 0:04:51.1]}
5... Nf6 {[%clk 0:04:53.5]} 6. Bg5 {[%clk 0:04:50.5]} 6... Qa5 {[%clk 0:04:49]}
7. Bxf6 {[%clk 0:04:47.7]} 7... gxf6 {[%clk 0:04:48.9]} 8. Bb5 {[%clk
0:04:43.4]} 8... Bd7 {[%clk 0:04:46.2]} 9. Qd2 {[%clk 0:04:42.5]} 9... Rc8
{[%clk 0:04:25.5]} 10. O-O-O {[%clk 0:04:39.1]} 10... Qb4 {[%clk 0:04:14.2]} 11.
a3 {[%clk 0:04:34.1]} 11... Qxd4 {[%clk 0:04:11.7]} 12. Qxd4 {[%clk 0:04:32.3]}
12... Nxd4 {[%clk 0:04:11.6]} 13. Bxd7+ {[%clk 0:04:31.4]} 13... Kxd7 {[%clk
0:04:11.5]} 14. Rxd4 {[%clk 0:04:30.6]} 14... Bh6+ {[%clk 0:04:03.5]} 15. Kb1
{[%clk 0:04:27.7]} 15... Rhg8 {[%clk 0:04:01.5]} 16. g3 {[%clk 0:04:26.6]} 16...
Rg5 {[%clk 0:03:53.2]} 17. Rhd1 {[%clk 0:04:19.9]} 17... Rgc5 {[%clk 0:03:45.9]}
18. h4 {[%clk 0:04:16.4]} 18... Bg7 {[%clk 0:03:41.4]} 19. f4 {[%clk 0:04:10.7]}
19... Ke8 {[%clk 0:03:32.6]} 20. Nd5 {[%clk 0:04:05.6]} 20... f5 {[%clk
0:03:27.4]} 21. Rb4 {[%clk 0:04:02.5]} 21... b6 {[%clk 0:03:21.1]} 22. c3 {[%clk
0:03:57.8]} 22... fxe4 {[%clk 0:03:19.9]} 23. Rxe4 {[%clk 0:03:56.4]} 23... e6
{[%clk 0:03:16.4]} 24. Nb4 {[%clk 0:03:51.7]} 24... Ke7 {[%clk 0:03:13.9]} 25.
Nd3 {[%clk 0:03:49]} 25... Rc4 {[%clk 0:03:10.5]} 26. Rde1 {[%clk 0:03:47.1]}
26... Rxe4 {[%clk 0:03:08.6]} 27. Rxe4 {[%clk 0:03:47]} 27... d5 {[%clk
0:03:08.2]} 28. Re1 {[%clk 0:03:45.6]} 28... d4 {[%clk 0:03:05.1]} 29. cxd4
{[%clk 0:03:43]} 29... Bxd4 {[%clk 0:03:05]} 30. f5 {[%clk 0:03:42.4]} 30... Rg8
{[%clk 0:02:57]} 31. fxe6 {[%clk 0:03:40.7]} 31... fxe6 {[%clk 0:02:56.9]} 32.
Re4 {[%clk 0:03:35.8]} 32... Bf6 {[%clk 0:02:40.9]} 33. Nf4 {[%clk 0:03:33.9]}
33... Rxg3 {[%clk 0:02:37]} 34. Rxe6+ {[%clk 0:03:28.7]} 34... Kf7 {[%clk
0:02:35.4]} 35. Rxf6+ {[%clk 0:03:27.1]} 35... Kxf6 {[%clk 0:02:30.3]} 36. Nh5+
{[%clk 0:03:26.4]} 36... Kf5 {[%clk 0:02:30.2]} 37. Nxg3+ {[%clk 0:03:26.3]}
37... Kg4 {[%clk 0:02:29.6]} 38. Ne4 {[%clk 0:03:25.8]} 38... Kxh4 {[%clk
0:02:29.5]} 39. Nf6 {[%clk 0:03:25.4]} 39... h5 {[%clk 0:02:27.9]} 40. Kc2
{[%clk 0:03:24.8]} 40... Kg5 {[%clk 0:02:26.9]} 41. Nxh5 {[%clk 0:03:20.1]}
41... Kxh5 {[%clk 0:02:25.1]} 42. Kc3 {[%clk 0:03:20]} 42... Kg5 {[%clk
0:02:23.5]} 43. Kc4 {[%clk 0:03:19.6]} 43... Kf5 {[%clk 0:02:20.6]} 44. Kb5
{[%clk 0:03:19]} 44... Ke4 {[%clk 0:02:19.2]} 45. Ka6 {[%clk 0:03:18.6]} 45...
Kd3 {[%clk 0:02:19.1]} 46. Kxa7 {[%clk 0:03:17.8]} 46... Kc2 {[%clk 0:02:19]}
47. Kxb6 {[%clk 0:03:17.5]} 47... Kxb2 {[%clk 0:02:18.2]} 48. a4 {[%clk
0:03:16.5]} 48... Kb3 {[%clk 0:02:18.1]} 49. a5 {[%clk 0:03:16]} 1-0

[Event "Live Chess"]
[Site "Chess.com"]
[Date "2024.06.01"]
[Round "-"]
[White "grillage"]
[Black "educatedlad"]
[Result "1-0"]
[WhiteElo "1893"]
[BlackElo "1759"]
[TimeControl "300"]
[EndTime "10:47:30 PDT"]
[Termination "grillage won by resignation"]

1. d4 {[%clk 0:04:57.7]} 1... d5 {[%clk 0:04:58.8]} 2. Nf3 {[%clk 0:04:56]} 2...
Nf6 {[%clk 0:04:57.1]} 3. c4 {[%clk 0:04:55.1]} 3... g6 {[%clk 0:04:55.8]} 4.
cxd5 {[%clk 0:04:53.2]} 4... Nxd5 {[%clk 0:04:54.9]} 5. e4 {[%clk 0:04:51.6]}
5... Nb6 {[%clk 0:04:53]} 6. Nc3 {[%clk 0:04:50.6]} 6... Bg7 {[%clk 0:04:50.7]}
7. Be3 {[%clk 0:04:49.3]} 7... Nc6 {[%clk 0:04:48.3]} 8. Qd2 {[%clk 0:04:39.2]}
8... O-O {[%clk 0:04:46.3]} 9. d5 {[%clk 0:04:36.9]} 9... Ne5 {[%clk 0:04:43.1]}
10. Nxe5 {[%clk 0:04:34.7]} 10... Bxe5 {[%clk 0:04:41.6]} 11. f4 {[%clk
0:04:25.5]} 11... Bh8 {[%clk 0:04:36.7]} 12. Be2 {[%clk 0:04:24.2]} 12... e6
{[%clk 0:04:29]} 13. dxe6 {[%clk 0:04:12]} 13... Bxe6 {[%clk 0:04:28.9]} 14. O-O
{[%clk 0:04:05.3]} 14... Bc4 {[%clk 0:04:21.2]} 15. Rad1 {[%clk 0:03:53]} 15...
Bxe2 {[%clk 0:04:17.5]} 16. Qxe2 {[%clk 0:03:51.1]} 16... Qe7 {[%clk 0:04:12.2]}
17. e5 {[%clk 0:03:47.9]} 17... Rad8 {[%clk 0:04:08.5]} 18. Ne4 {[%clk
0:03:43.5]} 18... Nd5 {[%clk 0:04:06.4]} 19. Bc5 {[%clk 0:03:40.1]} 19... Qe6
{[%clk 0:03:43.9]} 20. Bxf8 {[%clk 0:03:38.7]} 20... Kxf8 {[%clk 0:03:42.2]} 21.
Ng5 {[%clk 0:03:05.9]} 21... Qb6+ {[%clk 0:03:39.9]} 22. Kh1 {[%clk 0:03:03.3]}
22... Ke7 {[%clk 0:03:28.3]} 23. Rd3 {[%clk 0:02:45.4]} 23... h6 {[%clk
0:03:22.1]} 24. Ne4 {[%clk 0:02:28.8]} 24... g5 {[%clk 0:03:11]} 25. fxg5 {[%clk
0:02:15.9]} 25... hxg5 {[%clk 0:03:10.9]} 26. Qd2 {[%clk 0:02:12.8]} 26... Bxe5
{[%clk 0:03:00.7]} 27. Rxd5 {[%clk 0:02:07.5]} 27... Qa6 {[%clk 0:02:54.4]} 28.
Rd1 {[%clk 0:01:56.5]} 28... Bd6 {[%clk 0:02:47.1]} 29. Nxd6 {[%clk 0:01:53]}
29... cxd6 {[%clk 0:02:46.5]} 30. Qxg5+ {[%clk 0:01:42.8]} 30... Ke8 {[%clk
0:02:40.7]} 31. Re1+ {[%clk 0:01:37.6]} 31... Kd7 {[%clk 0:02:38.8]} 32. Qe7+
{[%clk 0:01:32.5]} 32... Kc6 {[%clk 0:02:37.4]} 33. Qxd8 {[%clk 0:01:20.4]}
33... Kxd5 {[%clk 0:02:35.7]} 34. Rd1+ {[%clk 0:01:18.3]} 34... Ke6 {[%clk
0:02:30]} 35. Qe8+ {[%clk 0:01:16]} 35... Kf6 {[%clk 0:02:27.6]} 36. Qd7 {[%clk
0:01:10]} 36... Qe2 {[%clk 0:02:24.6]} 37. Qxd6+ {[%clk 0:01:07.2]} 37... Kg7
{[%clk 0:02:23.8]} 38. Qd4+ {[%clk 0:01:04.4]} 38... Kf8 {[%clk 0:02:22]} 39.
Qd2 {[%clk 0:01:00.2]} 39... Qc4 {[%clk 0:02:17]} 40. h3 {[%clk 0:00:58.7]}
40... Qxa2 {[%clk 0:02:15]} 41. Qd6+ {[%clk 0:00:56.1]} 1-0

[Event "Live Chess"]
[Site "Chess.com"]
[Date "2024.06.01"]
[Round "-"]
[White "NottheBishopSacrifice"]
[Black "ossie57"]
[Result "1-0"]
[WhiteElo "2221"]
[BlackElo "1632"]
[TimeControl "300"]
[EndTime "10:47:38 PDT"]
[Termination "NottheBishopSacrifice won by resignation"]

1. Nf3 {[%clk 0:04:57.4]} 1... Nf6 {[%clk 0:04:58.7]} 2. g3 {[%clk 0:04:57.3]}
2... g6 {[%clk 0:04:57.2]} 3. Bg2 {[%clk 0:04:57.2]} 3... Bg7 {[%clk 0:04:56.8]}
4. O-O {[%clk 0:04:55]} 4... O-O {[%clk 0:04:55.3]} 5. d4 {[%clk 0:04:52.8]}
5... d5 {[%clk 0:04:53.9]} 6. c4 {[%clk 0:04:52.2]} 6... c6 {[%clk 0:04:50.1]}
7. Nc3 {[%clk 0:04:51.6]} 7... Re8 {[%clk 0:04:47.1]} 8. cxd5 {[%clk 0:04:49.4]}
8... cxd5 {[%clk 0:04:46.1]} 9. Bf4 {[%clk 0:04:49.1]} 9... Nc6 {[%clk
0:04:44.8]} 10. Ne5 {[%clk 0:04:48.5]} 10... Nxe5 {[%clk 0:04:43.6]} 11. Bxe5
{[%clk 0:04:48.4]} 11... Be6 {[%clk 0:04:25.7]} 12. Qb3 {[%clk 0:04:45.5]} 12...
Ne4 {[%clk 0:03:31.1]} 13. Bxg7 {[%clk 0:04:41.4]} 13... Kxg7 {[%clk 0:03:30.6]}
14. Nxe4 {[%clk 0:04:30.3]} 14... dxe4 {[%clk 0:03:29.1]} 15. Qxb7 {[%clk
0:04:30]} 15... Bd5 {[%clk 0:03:16]} 16. Qa6 {[%clk 0:04:28.3]} 16... Qb6 {[%clk
0:02:59.1]} 17. Qxb6 {[%clk 0:04:26.2]} 17... axb6 {[%clk 0:02:59]} 18. a3
{[%clk 0:04:25.5]} 18... Rec8 {[%clk 0:02:57.7]} 19. Rfc1 {[%clk 0:04:22.9]}
19... f5 {[%clk 0:02:49.6]} 20. e3 {[%clk 0:04:21.4]} 20... Bb3 {[%clk
0:02:43.8]} 21. Bf1 {[%clk 0:04:20.2]} 21... Kf7 {[%clk 0:02:28.7]} 22. Bb5
{[%clk 0:04:16.2]} 22... e6 {[%clk 0:01:58]} 23. Bd7 {[%clk 0:04:13.1]} 23...
Rxc1+ {[%clk 0:01:52.7]} 24. Rxc1 {[%clk 0:04:13]} 24... Ke7 {[%clk 0:01:50.3]}
25. Bb5 {[%clk 0:04:11.9]} 25... h5 {[%clk 0:01:04.2]} 26. Rc7+ {[%clk
0:04:10.2]} 26... Kf6 {[%clk 0:00:58.9]} 27. h4 {[%clk 0:04:07]} 27... Bd1
{[%clk 0:00:56.2]} 28. Kf1 {[%clk 0:04:05.9]} 28... Bf3 {[%clk 0:00:54.9]} 29.
Ke1 {[%clk 0:04:05]} 29... Ra5 {[%clk 0:00:52.8]} 30. a4 {[%clk 0:04:03]} 30...
Ra8 {[%clk 0:00:49]} 31. Kd2 {[%clk 0:04:01.1]} 31... Rd8 {[%clk 0:00:47.1]} 32.
Rd7 {[%clk 0:03:59.4]} 32... Rc8 {[%clk 0:00:45.9]} 33. Rd6 {[%clk 0:03:58.6]}
33... Ke7 {[%clk 0:00:34.3]} 34. Rxb6 {[%clk 0:03:57]} 1-0

[Event "Live Chess"]
[Site "Chess.com"]
[Date "2024.06.01"]
[Round "-"]
[White "GoldsmanB"]
[Black "RomanKifliuk"]
[Result "0-1"]
[WhiteElo "1045"]
[BlackElo "2354"]
[TimeControl "300"]
[EndTime "10:47:38 PDT"]
[Termination "RomanKifliuk won by resignation"]

1. d4 {[%clk 0:04:58.1]} 1... c5 {[%clk 0:04:57.6]} 2. d5 {[%clk 0:04:55.9]}
2... e5 {[%clk 0:04:56.3]} 3. dxe6 {[%clk 0:04:53.9]} 3... fxe6 {[%clk
0:04:55.2]} 4. e4 {[%clk 0:04:52.7]} 4... Nc6 {[%clk 0:04:53.3]} 5. Nf3 {[%clk
0:04:51.6]} 5... d6 {[%clk 0:04:52.1]} 6. Bb5 {[%clk 0:04:50.2]} 6... e5 {[%clk
0:04:48.9]} 7. Nc3 {[%clk 0:04:46.8]} 7... Nf6 {[%clk 0:04:47.6]} 8. O-O {[%clk
0:04:44.7]} 8... Be7 {[%clk 0:04:45]} 9. Bg5 {[%clk 0:04:42.4]} 9... O-O {[%clk
0:04:42.4]} 10. Bxf6 {[%clk 0:04:40.7]} 10... Bxf6 {[%clk 0:04:40.4]} 11. Nd5
{[%clk 0:04:37.6]} 11... Bg4 {[%clk 0:04:38.4]} 12. Nxf6+ {[%clk 0:04:33.4]}
12... Rxf6 {[%clk 0:04:36.6]} 13. Qd3 {[%clk 0:04:26.6]} 13... Bxf3 {[%clk
0:04:33.1]} 14. gxf3 {[%clk 0:04:26.5]} 14... Nd4 {[%clk 0:04:31.7]} 15. Kh1
{[%clk 0:04:15]} 15... Rxf3 {[%clk 0:04:29.1]} 16. Qc4+ {[%clk 0:04:10.1]} 16...
Kh8 {[%clk 0:04:27.6]} 17. Qd5 {[%clk 0:04:03.5]} 17... Qh4 {[%clk 0:04:11.2]}
18. Qxb7 {[%clk 0:03:54.9]} 18... Rg8 {[%clk 0:04:04.9]} 19. Bc4 {[%clk
0:03:50.2]} 19... Rh3 {[%clk 0:03:58.6]} 0-1

[Event "Live Chess"]
[Site "Chess.com"]
[Date "2024.06.01"]
[Round "-"]
[White "OliWally08"]
[Black "IanCalvert2"]
[Result "1/2-1/2"]
[WhiteElo "1268"]
[BlackElo "1469"]
[TimeControl "300"]
[EndTime "10:47:46 PDT"]
[Termination "Game drawn - timeout vs insufficient material"]

1. e4 {[%clk 0:04:59]} 1... d5 {[%clk 0:04:56.1]} 2. e5 {[%clk 0:04:54.8]} 2...
c5 {[%clk 0:04:54]} 3. d4 {[%clk 0:04:51.9]} 3... Nc6 {[%clk 0:04:51.6]} 4. c3
{[%clk 0:04:48.9]} 4... cxd4 {[%clk 0:04:47.1]} 5. cxd4 {[%clk 0:04:47.5]} 5...
Qb6 {[%clk 0:04:45.8]} 6. Nf3 {[%clk 0:04:43.1]} 6... Bg4 {[%clk 0:04:42.9]} 7.
Be3 {[%clk 0:04:36.6]} 7... Qxb2 {[%clk 0:04:39.3]} 8. Nbd2 {[%clk 0:04:27.3]}
8... e6 {[%clk 0:04:37.3]} 9. Be2 {[%clk 0:04:01.2]} 9... Bb4 {[%clk 0:04:15]}
10. O-O {[%clk 0:03:55.6]} 10... Bxd2 {[%clk 0:04:07.4]} 11. Bxd2 {[%clk
0:03:20.4]} 11... Bxf3 {[%clk 0:03:55.3]} 12. Bxf3 {[%clk 0:03:13]} 12... Qxd4
{[%clk 0:03:40.3]} 13. Qe2 {[%clk 0:02:55.8]} 13... Nge7 {[%clk 0:02:48.2]} 14.
Be3 {[%clk 0:02:40.7]} 14... Qxe5 {[%clk 0:02:40.7]} 15. Rab1 {[%clk 0:02:32.3]}
15... d4 {[%clk 0:02:25.6]} 16. Rxb7 {[%clk 0:02:16.8]} 16... dxe3 {[%clk
0:02:19.1]} 17. Rxe7+ {[%clk 0:02:14.2]} 17... Kxe7 {[%clk 0:02:05.2]} 18. Bxc6
{[%clk 0:02:13.2]} 18... Rac8 {[%clk 0:01:56.1]} 19. Bb7 {[%clk 0:02:02.7]}
19... Rc7 {[%clk 0:01:43.1]} 20. Ba6 {[%clk 0:01:56]} 20... exf2+ {[%clk
0:01:38.3]} 21. Qxf2 {[%clk 0:01:43.1]} 21... Qc5 {[%clk 0:01:35.6]} 22. Qxc5+
{[%clk 0:01:39.9]} 22... Rxc5 {[%clk 0:01:33.5]} 23. h3 {[%clk 0:01:38.3]} 23...
Ra5 {[%clk 0:01:26.1]} 24. Bc4 {[%clk 0:01:37.4]} 24... Rc8 {[%clk 0:01:22.9]}
25. Bb3 {[%clk 0:01:35.5]} 25... Rac5 {[%clk 0:01:21.3]} 26. Kh2 {[%clk
0:01:32.5]} 26... Rc1 {[%clk 0:01:06.6]} 27. Rf3 {[%clk 0:01:30.4]} 27... R8c3
{[%clk 0:01:03.6]} 28. Rf2 {[%clk 0:01:28.9]} 28... a5 {[%clk 0:00:47.4]} 29.
Rd2 {[%clk 0:01:26.6]} 29... Rb1 {[%clk 0:00:35.3]} 30. Rf2 {[%clk 0:01:21.5]}
30... Rbxb3 {[%clk 0:00:33.1]} 31. axb3 {[%clk 0:01:20.5]} 31... Rxb3 {[%clk
0:00:32.1]} 32. Ra2 {[%clk 0:01:20.1]} 32... Rb5 {[%clk 0:00:29.7]} 33. Ra4
{[%clk 0:01:18.9]} 33... Kd6 {[%clk 0:00:28.4]} 34. Kg3 {[%clk 0:01:18.5]} 34...
Kc5 {[%clk 0:00:27.3]} 35. Kf4 {[%clk 0:01:16.2]} 35... Kb6 {[%clk 0:00:26.1]}
36. Ke4 {[%clk 0:01:14.5]} 36... Rb4+ {[%clk 0:00:24.8]} 37. Rxb4+ {[%clk
0:01:13.1]} 37... axb4 {[%clk 0:00:23.8]} 38. Kd4 {[%clk 0:01:12.8]} 38... Ka5
{[%clk 0:00:22.8]} 39. Kc4 {[%clk 0:01:12.2]} 39... Ka4 {[%clk 0:00:21.8]} 40.
Kd3 {[%clk 0:01:11.2]} 40... Ka3 {[%clk 0:00:20.5]} 41. Kc2 {[%clk 0:01:10.3]}
41... Ka2 {[%clk 0:00:19.6]} 42. g4 {[%clk 0:01:08.5]} 42... b3+ {[%clk
0:00:19.1]} 43. Kc3 {[%clk 0:01:08.1]} 43... b2 {[%clk 0:00:18.4]} 44. g5 {[%clk
0:01:08]} 44... b1=Q {[%clk 0:00:16.5]} 45. g6 {[%clk 0:01:07.9]} 45... Qb2+
{[%clk 0:00:14.2]} 46. Kc4 {[%clk 0:01:06.8]} 46... hxg6 {[%clk 0:00:13]} 47. h4
{[%clk 0:01:05.9]} 47... Qh2 {[%clk 0:00:07.5]} 48. h5 {[%clk 0:01:05.2]} 48...
Qxh5 {[%clk 0:00:06.1]} 49. Kc3 {[%clk 0:01:04.5]} 49... Qd5 {[%clk 0:00:05.3]}
50. Kc2 {[%clk 0:01:03.3]} 50... g5 {[%clk 0:00:04.8]} 51. Kc3 {[%clk
0:01:03.2]} 51... g4 {[%clk 0:00:04.1]} 52. Kb4 {[%clk 0:01:03.1]} 52... g3
{[%clk 0:00:03.3]} 53. Kc3 {[%clk 0:01:02.1]} 53... g2 {[%clk 0:00:02.9]} 54.
Kc2 {[%clk 0:01:01.4]} 54... g1=Q {[%clk 0:00:02.1]} 55. Kc3 {[%clk 0:01:01.3]}
55... Qgd4+ {[%clk 0:00:00.8]} 56. Kc2 {[%clk 0:01:00.3]} 1/2-1/2

[Event "Live Chess"]
[Site "Chess.com"]
[Date "2024.06.01"]
[Round "-"]
[White "Ocelot32"]
[Black "Yarigo"]
[Result "0-1"]
[WhiteElo "1386"]
[BlackElo "2383"]
[TimeControl "300"]
[EndTime "10:47:50 PDT"]
[Termination "Yarigo won by resignation"]

1. e4 {[%clk 0:04:56.9]} 1... c6 {[%clk 0:04:57.7]} 2. d4 {[%clk 0:04:55.1]}
2... d5 {[%clk 0:04:57.3]} 3. Nc3 {[%clk 0:04:54]} 3... dxe4 {[%clk 0:04:55.1]}
4. Nxe4 {[%clk 0:04:53]} 4... Bf5 {[%clk 0:04:53.8]} 5. Ng3 {[%clk 0:04:51.6]}
5... Bg6 {[%clk 0:04:52.3]} 6. c3 {[%clk 0:04:50.9]} 6... e6 {[%clk 0:04:50.3]}
7. Nf3 {[%clk 0:04:50]} 7... Nd7 {[%clk 0:04:48]} 8. Bd3 {[%clk 0:04:49.1]} 8...
Ngf6 {[%clk 0:04:42.7]} 9. Bf4 {[%clk 0:04:45.4]} 9... Qb6 {[%clk 0:04:37.9]}
10. Rb1 {[%clk 0:04:42.2]} 10... Be7 {[%clk 0:04:33.1]} 11. Ne5 {[%clk
0:04:32.8]} 11... Nxe5 {[%clk 0:04:30]} 12. Bxe5 {[%clk 0:04:32]} 12... Nd7
{[%clk 0:04:11.2]} 13. Bxg7 {[%clk 0:04:27.2]} 13... Rg8 {[%clk 0:04:09.7]} 14.
Bh6 {[%clk 0:04:23.3]} 14... O-O-O {[%clk 0:04:03.2]} 15. Bf4 {[%clk 0:04:20.8]}
15... e5 {[%clk 0:03:58.6]} 16. dxe5 {[%clk 0:04:14.5]} 16... Nxe5 {[%clk
0:03:56.3]} 17. Bxe5 {[%clk 0:04:01.8]} 17... Bxd3 {[%clk 0:03:52.2]} 18. Qg4+
{[%clk 0:03:57.7]} 18... Rxg4 {[%clk 0:03:40.3]} 0-1

[Event "Live Chess"]
[Site "Chess.com"]
[Date "2024.06.01"]
[Round "-"]
[White "ZatixMajor"]
[Black "ACM42"]
[Result "1-0"]
[WhiteElo "2013"]
[BlackElo "2200"]
[TimeControl "300"]
[EndTime "10:47:51 PDT"]
[Termination "ZatixMajor won by checkmate"]

1. c4 {[%clk 0:04:58.4]} 1... Nf6 {[%clk 0:04:58.7]} 2. g3 {[%clk 0:04:57.3]}
2... g6 {[%clk 0:04:57.7]} 3. Bg2 {[%clk 0:04:56.8]} 3... Bg7 {[%clk 0:04:55.8]}
4. Nc3 {[%clk 0:04:56.7]} 4... O-O {[%clk 0:04:54.9]} 5. e4 {[%clk 0:04:56.2]}
5... d6 {[%clk 0:04:53.8]} 6. Nge2 {[%clk 0:04:55.6]} 6... c5 {[%clk 0:04:52.9]}
7. O-O {[%clk 0:04:54.9]} 7... Nc6 {[%clk 0:04:42.1]} 8. d3 {[%clk 0:04:53.6]}
8... a6 {[%clk 0:04:40.6]} 9. Be3 {[%clk 0:04:50.7]} 9... Rb8 {[%clk 0:04:39.1]}
10. a4 {[%clk 0:04:48.2]} 10... a5 {[%clk 0:04:26.6]} 11. Qd2 {[%clk 0:04:41.9]}
11... e5 {[%clk 0:03:57.1]} 12. f4 {[%clk 0:04:28.1]} 12... Nd4 {[%clk
0:03:52.9]} 13. fxe5 {[%clk 0:04:24.2]} 13... dxe5 {[%clk 0:03:51.4]} 14. Bg5
{[%clk 0:04:18.1]} 14... Nb3 {[%clk 0:03:45.9]} 15. Qe1 {[%clk 0:03:57.4]} 15...
Nxa1 {[%clk 0:03:43.4]} 16. Nd5 {[%clk 0:03:56.1]} 16... Nc2 {[%clk 0:03:36.6]}
17. Qd2 {[%clk 0:03:46.9]} 17... Nxd5 {[%clk 0:03:11.5]} 18. Bxd8 {[%clk
0:03:45.4]} 18... Rxd8 {[%clk 0:03:10.8]} 19. cxd5 {[%clk 0:03:36.5]} 19... Nb4
{[%clk 0:03:08.7]} 20. Qg5 {[%clk 0:03:21.6]} 20... Bd7 {[%clk 0:02:54.2]} 21.
Qe3 {[%clk 0:03:02.7]} 21... b6 {[%clk 0:02:49.4]} 22. Qf3 {[%clk 0:02:47.2]}
22... Rf8 {[%clk 0:02:42.4]} 23. Nc3 {[%clk 0:02:32.7]} 23... Nc2 {[%clk
0:02:36.3]} 24. Nb5 {[%clk 0:02:16.7]} 24... h5 {[%clk 0:02:31.1]} 25. Rc1
{[%clk 0:02:09.4]} 25... Nd4 {[%clk 0:02:20.9]} 26. Nxd4 {[%clk 0:02:07.8]}
26... exd4 {[%clk 0:02:19.7]} 27. Re1 {[%clk 0:02:04.8]} 27... Rbe8 {[%clk
0:02:13.5]} 28. Qd1 {[%clk 0:01:54.5]} 28... Re5 {[%clk 0:01:59]} 29. Qb3 {[%clk
0:01:41]} 29... Rb8 {[%clk 0:01:56.5]} 30. Qc4 {[%clk 0:01:29.4]} 30... Bh6
{[%clk 0:01:39]} 31. Qa6 {[%clk 0:01:24.7]} 31... Bxa4 {[%clk 0:01:29.1]} 32.
Qa7 {[%clk 0:01:21.8]} 32... Ree8 {[%clk 0:01:22.4]} 33. e5 {[%clk 0:01:19.7]}
33... c4 {[%clk 0:01:11.2]} 34. e6 {[%clk 0:01:16.3]} 34... fxe6 {[%clk
0:01:00.3]} 35. dxe6 {[%clk 0:01:14.9]} 35... cxd3 {[%clk 0:00:59.2]} 36. Qf7+
{[%clk 0:01:07.9]} 36... Kh8 {[%clk 0:00:57]} 37. Qxg6 {[%clk 0:01:01.3]} 37...
Bg7 {[%clk 0:00:27.1]} 38. Be4 {[%clk 0:00:55.2]} 38... Kg8 {[%clk 0:00:18.5]}
39. Qf7+ {[%clk 0:00:53]} 39... Kh8 {[%clk 0:00:16.7]} 40. Qxh5+ {[%clk
0:00:52.1]} 40... Kg8 {[%clk 0:00:15.6]} 41. Rf1 {[%clk 0:00:46.6]} 41... Rxe6
{[%clk 0:00:08.6]} 42. Qh7# {[%clk 0:00:44.9]} 1-0

[Event "Live Chess"]
[Site "Chess.com"]
[Date "2024.06.01"]
[Round "-"]
[White "FlyingChessKestrel13"]
[Black "Brooms1989"]
[Result "1-0"]
[WhiteElo "2109"]
[BlackElo "1058"]
[TimeControl "300"]
[EndTime "10:47:52 PDT"]
[Termination "FlyingChessKestrel13 won by resignation"]

1. e4 {[%clk 0:04:58.1]} 1... e5 {[%clk 0:04:56.6]} 2. Nf3 {[%clk 0:04:56.8]}
2... Nc6 {[%clk 0:04:55.6]} 3. Bb5 {[%clk 0:04:55.4]} 3... a6 {[%clk 0:04:53.8]}
4. Ba4 {[%clk 0:04:47.7]} 4... Nf6 {[%clk 0:04:52.5]} 5. O-O {[%clk 0:04:44.1]}
5... Nxe4 {[%clk 0:04:50]} 6. Re1 {[%clk 0:04:43]} 6... Nc5 {[%clk 0:04:46.6]}
7. Bxc6 {[%clk 0:04:41.5]} 7... dxc6 {[%clk 0:04:45.1]} 8. Nxe5 {[%clk
0:04:41.1]} 8... Ne6 {[%clk 0:04:43]} 9. c3 {[%clk 0:04:36.2]} 9... Bd6 {[%clk
0:04:37.3]} 10. d4 {[%clk 0:04:35.2]} 10... O-O {[%clk 0:04:33.9]} 11. Nd2
{[%clk 0:04:33.6]} 11... Bxe5 {[%clk 0:04:17.1]} 12. dxe5 {[%clk 0:04:28.5]}
12... Qg5 {[%clk 0:04:09.8]} 13. Nf3 {[%clk 0:04:25.3]} 13... Qg6 {[%clk
0:04:06.4]} 14. Be3 {[%clk 0:04:20.3]} 14... Rd8 {[%clk 0:03:32]} 15. Qe2 {[%clk
0:04:17.5]} 15... Bd7 {[%clk 0:03:28.9]} 16. Rad1 {[%clk 0:04:15.7]} 16... Be8
{[%clk 0:03:27]} 17. Nd4 {[%clk 0:04:13.7]} 17... Nxd4 {[%clk 0:03:21.2]} 18.
cxd4 {[%clk 0:04:11.4]} 18... Bd7 {[%clk 0:03:15.2]} 19. Rd2 {[%clk 0:03:56.8]}
19... Bh3 {[%clk 0:03:07.1]} 20. f4 {[%clk 0:03:55.2]} 20... Bg4 {[%clk
0:03:03.6]} 21. Qf2 {[%clk 0:03:54.2]} 21... Re8 {[%clk 0:02:42.9]} 22. Rf1
{[%clk 0:03:52.8]} 22... Be6 {[%clk 0:02:34.8]} 23. f5 {[%clk 0:03:50.4]} 1-0